Cogmind - Beta 9.6 @@@ ROGUE MODE // 2020.08.21 @ 00:15:35 Player: Trione Result: Destroyed by S-27 Virus with Autogun Performance ------------- Evolutions (4) 2000 Regions Visited (6) 1200 Robots Destroyed (3) 15 Value Destroyed (11) 11 Prototype IDs (0) 0 Alien Tech Used (0) 0 Bonus (834) 834 TOTAL SCORE: 4060 Bonus ------- Pacifist 834 Cogmind --------- Core Integrity 0/850 Matter 300/300 Energy 99/100 System Corruption 0% Temperature Cool (0) Movement Core (50) Location -6/Lower Caves Parts ------- > --- POWER (9) -------- (None) > --- PROPULSION (2) --- (None) > --- UTILITY (2) ------ (None) > --- WEAPON (2) ------- (None) > --- INVENTORY (4) ---- (None) Peak State ------------ None Favorites ----------- Power None Propulsion None Utility None Weapon None Build | -11 -10 -9 -8 -7 -6 -6 ------- Run | Scr Mat Mat Mat Fac Fac Low Slots Evolved 8 | . . 2 2 2 2 . Power 8 | . . 2 2 2 2 . Propulsion . | . . . . . . . Utility . | . . . . . . . Weapon . | . . . . . . . Parts Attached . | . . . . . . . Power . | . . . . . . . Engine . | . . . . . . . Core . | . . . . . . . Reactor . | . . . . . . . Propulsion . | . . . . . . . Treads . | . . . . . . . Leg . | . . . . . . . Wheel . | . . . . . . . Hover . | . . . . . . . Flight . | . . . . . . . Utility . | . . . . . . . Device . | . . . . . . . Storage . | . . . . . . . Processor . | . . . . . . . Hackware . | . . . . . . . Protection . | . . . . . . . Artifact . | . . . . . . . Weapon . | . . . . . . . Energy Gun . | . . . . . . . Energy Cannon . | . . . . . . . Ballistic Gun . | . . . . . . . Ballistic Cannon . | . . . . . . . Launcher . | . . . . . . . Special Weapon . | . . . . . . . Impact Weapon . | . . . . . . . Slashing Weapon . | . . . . . . . Piercing Weapon . | . . . . . . . Special Melee Weapon . | . . . . . . . Unidentified Prototypes . | . . . . . . . Parts Lost . | . . . . . . . Power . | . . . . . . . Propulsion . | . . . . . . . Utility . | . . . . . . . Weapon . | . . . . . . . Highest Loss Streak . | . . . . . . . Average Slot Usage (%) . | . . . . . . . Naked Turns 1185 | . 43 94 146 383 325 194 Heaviest Build . | . . . . . . . Greatest Support 3 | 3 3 3 3 3 3 3 Greatest Overweight (x) . | . . . . . . . Average Overweight (x) . | . . . . . . . Largest Inventory Capacity 4 | 4 4 4 4 4 4 4 Average Capacity 4 | 4 4 4 4 4 4 4 Most Carried . | . . . . . . . Average Carried . | . . . . . . . Final Capacity 4 | 4 4 4 4 4 4 4 Final Carried . | . . . . . . . Class Distribution -------------------- 100% | Mutant Dominant Class ---------------- Mutant | -10/Materials Mutant | -9/Materials Mutant | -8/Materials Mutant | -7/Factory Mutant | -6/Factory Mutant | -6/Lower Caves Resources | -11 -10 -9 -8 -7 -6 -6 ----------- Run | Scr Mat Mat Mat Fac Fac Low Matter Collected 200 | 200 . . . . . . Remotely . | . . . . . . . Salvage Created 70 | . . . . 48 22 . Parts 11 | . . . . 6 5 . Haulers Intercepted . | . . . . . . . Recyclers Shooed . | . . . . . . . Parts Field Recycled . | . . . . . . . Retrieved Matter . | . . . . . . . Parts Self-Destructed . | . . . . . . . Prevented . | . . . . . . . Kills | -11 -10 -9 -8 -7 -6 -6 ------- Run | Scr Mat Mat Mat Fac Fac Low Combat Hostiles Destroyed . | . . . . . . . Classes Destroyed 2 | . . . . 2 . . Worker 1 | . . . . 1 . . Builder 2 | . . . . 1 1 . Best Kill Streak 2 | . . . . 2 1 . Combat Bots Only . | . . . . . . . Max Kills in Single Turn 1 | . . . . 1 1 . Gunslinging . | . . . . . . . Exploded . | . . . . . . . Melee . | . . . . . . . Uniques/NPCs Destroyed . | . . . . . . . Combat | -11 -10 -9 -8 -7 -6 -6 -------- Run | Scr Mat Mat Mat Fac Fac Low Damage Taken 1807 | . . 301 201 441 388 476 Core 1807 | . . 301 201 441 388 476 Absorbed by Shields . | . . . . . . . Core Remaining (%) 64 | 100 100 24 63 37 . . Volleys Fired . | . . . . . . . Largest . | . . . . . . . Hottest . | . . . . . . . Shots Fired . | . . . . . . . Gun . | . . . . . . . Cannon . | . . . . . . . Launcher . | . . . . . . . Special . | . . . . . . . Kinetic . | . . . . . . . Thermal . | . . . . . . . Explosive . | . . . . . . . Electromagnetic . | . . . . . . . Robot Hit Streak . | . . . . . . . Robot Miss Streak . | . . . . . . . Penetration Max . | . . . . . . . Secondary Targets . | . . . . . . . Shots Hit Robots . | . . . . . . . Core Hits 11 | . . . . 4 7 . Critical Hits . | . . . . . . . Critical Kills . | . . . . . . . Critical Parts Destroyed . | . . . . . . . Melee Attacks . | . . . . . . . Impact . | . . . . . . . Slashing . | . . . . . . . Piercing . | . . . . . . . Sneak Attacks . | . . . . . . . Combat Hostiles . | . . . . . . . Follow-up Attacks . | . . . . . . . Damage Inflicted 71 | . . . . 42 29 . Guns . | . . . . . . . Cannons . | . . . . . . . Explosions . | . . . . . . . Melee . | . . . . . . . Ramming 71 | . . . . 42 29 . Kinetic . | . . . . . . . Thermal . | . . . . . . . Explosive . | . . . . . . . Electromagnetic . | . . . . . . . Impact . | . . . . . . . Slashing . | . . . . . . . Piercing . | . . . . . . . Highest Corruption . | . . . . . . . Average Corruption . | . . . . . . . Corruption Purged . | . . . . . . . Overload Shots . | . . . . . . . Overflow Damage . | . . . . . . . Projectiles . | . . . . . . . Explosions . | . . . . . . . Melee . | . . . . . . . Knockbacks . | . . . . . . . Impact . | . . . . . . . Kinetic . | . . . . . . . Secondary . | . . . . . . . Self-Inflicted Damage 32 | . . . . 20 12 . Shots . | . . . . . . . Rammed 16 | . . . . 6 10 . Targets Rammed 16 | . . . . 6 10 . Kicked . | . . . . . . . Crushed . | . . . . . . . Highest Temperature . | . . . . . . . Average Temperature . | . . . . . . . Received Heat Transfer 258 | . . 153 63 18 24 . Siege Activations . | . . . . . . . Robots Corrupted . | . . . . . . . Combat Hostiles . | . . . . . . . Parts Fried . | . . . . . . . Impact Corruptions . | . . . . . . . Robots Melted . | . . . . . . . Combat Hostiles . | . . . . . . . Parts Melted . | . . . . . . . Heat Transferred . | . . . . . . . Parts Sabotaged . | . . . . . . . Parts Stolen . | . . . . . . . Parts Stripped . | . . . . . . . Power Chain Reactions . | . . . . . . . Missiles Intercepted . | . . . . . . . Alert | -11 -10 -9 -8 -7 -6 -6 ------- Run | Scr Mat Mat Mat Fac Fac Low Peak Influence 180 | . . 60 145 180 168 . Average Influence 94 | . . 22 90 109 115 . Maximum Alert Level . | . . . . . . . Low Security (%) 100 | 100 100 100 100 100 100 . Level 1 . | . . . . . . . Level 2 . | . . . . . . . Level 3 . | . . . . . . . Level 4 . | . . . . . . . Level 5 . | . . . . . . . High Security . | . . . . . . . Max Security . | . . . . . . . Squads Dispatched 6 | . . 2 2 2 . . Investigation 1 | . . . . 1 . . Extermination . | . . . . . . . Reinforcement 5 | . . 2 2 1 . . Assault . | . . . . . . . Garrison . | . . . . . . . Intercept . | . . . . . . . Construction Impeded . | . . . . . . . Haulers Reinforced . | . . . . . . . Stealth | -11 -10 -9 -8 -7 -6 -6 --------- Run | Scr Mat Mat Mat Fac Fac Low Distress Signals 4 | . . . . 1 3 . Communications Jammed . | . . . . . . . Distress Signals . | . . . . . . . Times Spotted 50 | . . 14 8 15 7 6 Peak Tracking Total 11 | . . 11 5 11 6 3 Tactical Retreats 6 | . . 1 1 3 1 . Traps | -11 -10 -9 -8 -7 -6 -6 ------- Run | Scr Mat Mat Mat Fac Fac Low Traps Triggered 2 | . . . 1 1 . . Indirectly . | . . . . . . . Trap Hack Attempts . | . . . . . . . Triggered . | . . . . . . . Disarmed . | . . . . . . . Reprogrammed . | . . . . . . . Reused . | . . . . . . . Traps Extracted . | . . . . . . . Installed . | . . . . . . . Triggered . | . . . . . . . Machines | -11 -10 -9 -8 -7 -6 -6 ---------- Run | Scr Mat Mat Mat Fac Fac Low Machines Disabled . | . . . . . . . Max in Single Turn . | . . . . . . . Machines Sabotaged . | . . . . . . . Garrisons Compromised . | . . . . . . . Overloaded Fab Kills . | . . . . . . . Fab Network Shutdowns . | . . . . . . . Hacking | -11 -10 -9 -8 -7 -6 -6 --------- Run | Scr Mat Mat Mat Fac Fac Low Machines Accessed . | . . . . . . . Terminals . | . . . . . . . Fabricators . | . . . . . . . Repair Stations . | . . . . . . . Recycling Units . | . . . . . . . Scanalyzers . | . . . . . . . Garrison Access . | . . . . . . . Total Hacks . | . . . . . . . Successful . | . . . . . . . Failed . | . . . . . . . Catastrophic . | . . . . . . . Database Lockouts . | . . . . . . . Manual . | . . . . . . . Terminals . | . . . . . . . Fabricators . | . . . . . . . Repair Stations . | . . . . . . . Recycling Units . | . . . . . . . Scanalyzers . | . . . . . . . Garrison Access . | . . . . . . . Terminal Hacks . | . . . . . . . Fabricator Hacks . | . . . . . . . Repair Station Hacks . | . . . . . . . Recycling Unit Hacks . | . . . . . . . Scanalyzer . | . . . . . . . Garrison Access Hacks . | . . . . . . . Unauthorized Hacks . | . . . . . . . Terminals . | . . . . . . . Fabricators . | . . . . . . . Repair Stations . | . . . . . . . Recycling Units . | . . . . . . . Scanalyzers . | . . . . . . . Garrison Access . | . . . . . . . Data Cores Recovered . | . . . . . . . Used . | . . . . . . . Hacking Detections . | . . . . . . . Full Trace Events . | . . . . . . . Feedback Events . | . . . . . . . Feedback Blocked . | . . . . . . . Robot Schematics Acquired . | . . . . . . . Robots Built . | . . . . . . . Matter . | . . . . . . . Time . | . . . . . . . Total Robot Build Rating . | . . . . . . . Part Schematics Acquired . | . . . . . . . Parts Built . | . . . . . . . Matter . | . . . . . . . Time . | . . . . . . . Total Part Build Rating . | . . . . . . . Parts Repaired . | . . . . . . . Time . | . . . . . . . Parts Recycled . | . . . . . . . Recycled Matter . | . . . . . . . Retrieved Matter . | . . . . . . . Retrieved Components . | . . . . . . . Parts Scanalyzed . | . . . . . . . Part Schematics Acquired . | . . . . . . . Parts Damaged . | . . . . . . . Bothacking | -11 -10 -9 -8 -7 -6 -6 ------------ Run | Scr Mat Mat Mat Fac Fac Low Used RIF Installer . | . . . . . . . Robots Hacked . | . . . . . . . Non-combat . | . . . . . . . Combat . | . . . . . . . Robot Hacks Applied . | . . . . . . . Relay Couplers Released . | . . . . . . . Robots Rewired . | . . . . . . . Allies Hacked . | . . . . . . . Hacks Repelled . | . . . . . . . Allies | -11 -10 -9 -8 -7 -6 -6 -------- Run | Scr Mat Mat Mat Fac Fac Low Total Allies . | . . . . . . . Largest Group . | . . . . . . . Highest-Rated Group . | . . . . . . . Highest-Rated Ally . | . . . . . . . Total Orders . | . . . . . . . Ally Attacks . | . . . . . . . Total Damage . | . . . . . . . Kills . | . . . . . . . Allies Corrupted . | . . . . . . . Allies Melted . | . . . . . . . Intel | -11 -10 -9 -8 -7 -6 -6 ------- Run | Scr Mat Mat Mat Fac Fac Low Robot Analysis Total . | . . . . . . . Derelict Logs Recovered 1 | . . . . . . 1 Drone Launches . | . . . . . . . Drone Recoveries . | . . . . . . . Exploration | -11 -10 -9 -8 -7 -6 -6 ------------- Run | Scr Mat Mat Mat Fac Fac Low Turns Passed 1196 | 11 43 94 146 383 325 194 Spaces Moved 2245 | 22 86 167 213 753 617 387 Core 2245 | 22 86 167 213 753 617 387 Treads . | . . . . . . . Legs . | . . . . . . . Wheels . | . . . . . . . Hover . | . . . . . . . Flight . | . . . . . . . Fastest Speed 50 | 50 50 50 50 50 50 50 Average Speed 50 | 50 50 50 50 50 50 50 Slowest Speed 50 | 50 50 50 50 50 50 50 Overloaded Moves . | . . . . . . . Propulsion Burnouts . | . . . . . . . Robots Hopped . | . . . . . . . Cave-ins Triggered . | . . . . . . . Exploration Rate (%) 23 | 3 23 19 27 29 16 47 Regions Visited 6 Branch Regions 1 Pre-discovered Areas . | . . . . . . . Known Exits Taken . | . . . . . . . Unknown Exits Taken 6 | 1 1 1 1 1 1 . Scrap Searched . | . . . . . . . Spaces Dug . | . . . . . . . Terrain Destroyed . | . . . . . . . Melee . | . . . . . . . Projectile . | . . . . . . . AOE . | . . . . . . . Actions | -11 -10 -9 -8 -7 -6 -6 --------- Run | Scr Mat Mat Mat Fac Fac Low Total 2310 | 21 85 176 251 758 632 387 Wait 55 | . . 10 39 . 6 . Move 2239 | 21 85 166 212 752 616 387 Hop . | . . . . . . . Pick Up . | . . . . . . . Fast Attach . | . . . . . . . Attach . | . . . . . . . Detach . | . . . . . . . Swap . | . . . . . . . Drop . | . . . . . . . Fire . | . . . . . . . Melee . | . . . . . . . Ram 16 | . . . . 6 10 . Kick . | . . . . . . . Crush . | . . . . . . . Escape Stasis . | . . . . . . . Rewire . | . . . . . . . Trap . | . . . . . . . Miscellaneous . | . . . . . . . Route ------- -11/Scrapyard -10/Materials (discovered 2 exits: [*Mat] / [*Min]) -9/Materials -8/Materials (discovered 2 exits: [*Fac] / [*Sto]) -7/Factory -6/Factory -6/Lower Caves History --------- Turn | Location | Event 4 | -11/Scrapyard | Discovered new exit (range 15) 12 | -11/Scrapyard | Entered Materials 26 | -10/Materials | Discovered new exit (range 16) 51 | -10/Materials | Discovered new exit (range 9) 55 | -10/Materials | Entered another Materials area 55 | -9/Materials | Evolved 2 slots: Power x2 137 | -9/Materials | Core integrity fell below 50% 146 | -9/Materials | Discovered new exit (range 6) 149 | -9/Materials | Entered another Materials area 149 | -8/Materials | Evolved 2 slots: Power x2 275 | -8/Materials | Discovered new exit (range 15) 287 | -8/Materials | Discovered new exit (range 15) 295 | -8/Materials | Entered Factory 295 | -7/Factory | Evolved 2 slots: Power x2 305 | -7/Factory | Build established: Mutant 616 | -7/Factory | Core integrity fell below 50% 670 | -7/Factory | Discovered new exit (range 16) 678 | -7/Factory | Entered another Factory area 678 | -6/Factory | Evolved 2 slots: Power x2 992 | -6/Factory | Discovered new exit (range 10) 1003 | -6/Factory | Entered Lower Caves 1070 | -6/Lower Caves | Learned Factory trap positions 1152 | -6/Lower Caves | Core integrity fell below 50% 1182 | -6/Lower Caves | Core integrity fell below 20% 1197 | -6/Lower Caves | Attracted the attention of an 0b10 checkpoint 1197 | -6/Lower Caves | Destroyed by S-27 Virus with Autogun Last Messages --------------- 00878_ K-01 Serf collects debris. 00950_ Slammed into U-05 Engineer. 00952_ U-05 Engineer destroyed. 00967_ W-25 Informer sends out distress signal. 00974_ Slammed into S-27 Virus. 00982_ W-25 Informer sends out distress signal. 00992_ EXIT=FOUND 00997_ W-25 Informer sends out distress signal. 01001_ K-01 Serf cleans the Subcomponent Replicator. LOCATION=UNKNOWN GOAL=ESCAPE 01070_ Acquired derelict log, extracted data. Data stored: Factory trap records. 01153_ Penetrated by Slug. 01156_ Slug penetrates Wall. 01182_ Penetrated by Slug. 01184_ Slug penetrates Wall. 01184_ Penetrated by Slug. 01187_ Slug penetrates Wall. 01197_ Y-54 Guardian: "INTERCEPTING UNREGISTERED DERELICT." Map ----- +----------------------------------------------------+ | ???????????????????????# ##???????????????### | | ???????????????????????# ##?????????????## | | ???????????????????????## ##???????????## | | ????????????????????????### ######?????## | | ?????????????????????????## ### ??????# | | ????????????????????????## #?# ??????## | | ????????????????????????# #?# #???????## | | ???????????????????????## ##?# #????????## | | ???????????????????????# #?## #?????????## | | ???????????????????????## #?# #??????????# | | ????????????????????????## ### #????###???## | | ?????????????????????????# ## #?#### ###??# | | ?????????????????????????# #?# #?## | | ?????????????????????????# ### #?## | | ?????????????????????????## ## ## ### | | ??????????????????????????######## | | ?????????????????????????????????# | | ???????????????????????########### ### ## | | ???????????????????????# #?# #? | | ???????????????????????# ####### ##?## ## | | ???????????????????????# #?##### #???# # | | ?????????????????????### #?# ###???# | | ????????????????????## #?# ##?????## | | ????????????????????# #?## #???????# | | ?????????????????#### #### #??????## | | ???????????# @ #?????# # | | ???????????# ######?????## ## | | ?????????????### s #### ##???????????###? | | ???????????????# ####??#####???????????????? | | ???????????????# gY ??????????????????????????? | | ???????????????# ???????????????????????????? | | ???????????????# ????????????????????????????? | | ???????????????# ?????????????????????????????? | | ???????????????# ??????????????????????????????? | | ???????????????###???????????????????????????????? | | ?????????????????????????????????????????????????? | | ?????????????????????????????????????????????????? | | ?????????????????????????????????????????????????? | | ?????????????????????????????????????????????????? | | ?????????????????????????????????????????????????? | | ?????????????????????????????????????????????????? | | ?????????????????????????????????????????????????? | | ?????????????????????????????????????????????????? | | ?????????????????????????????????????????????????? | | | | | | | | | | | | | +----------------------------------------------------+ Best States ------------- Heat Dissipation 37 Energy Generation 5 Energy Capacity 100 Matter Stores 300 Matter Capacity 300 Sight Range 16 Terrain Scan Density 10 Evasion (%) 50 Item Schematics ----------------- None Robot Schematics ------------------ None Fabricated ------------ Nothing Alien Tech Used ----------------- None Achievements -------------- None Challenges ------------ None Game ------ Seed TractorPhasingArmor Manual? 0 Play Time 00:13:00 Cumulative 1079.9 hours Start 2020.08.21 @ 00:04:02 End 2020.08.21 @ 00:15:35 Sessions 1 Manual Loads 0 Difficulty Rogue Special Mode None Game No. 411 Rogue 411 Adventurer 0 Explorer 0 Win Type - Total 25 Types 13/1/7/0/0/0/4 Lore% 96 Gallery% 98 Achievement% 83 Wizard Run 0 Options --------- ASCII 0 Keyboard 0 Movement Vi Keybinds 0 Fullscreen 0 Font 12/Crisp Map View 76x50 Tactical HUD 1 Map Filters NONE Filters NONE Steam 1 RUN: 6f14bf4f-84bc-4e1c-ba24-abaee1d5e984